fUST/lending_fUST_20251018
["ID","MTS","AMOUNT","RATE_DAILY","PERIOD"]
[391763939,1760785488580,500.0,0.00033991,120]
[391763940,1760785488802,500.0,0.00033991,120]
[391763941,1760785489035,500.0,0.00033991,120]
[391763942,1760785489277,503.87904502,0.00033991,120]
[391763943,1760785493955,500.0,0.00033991,120]
[391763944,1760785494206,500.0,0.00033991,120]
[391763945,1760785494413,458.87911922,0.00033991,120]
[391763946,1760785494450,500.0,0.00033991,120]
[391763947,1760785494730,500.0,0.00033991,120]
[391763948,1760785495299,500.0,0.00033991,120]
[391763949,1760785495553,500.0,0.00033991,120]
[391763950,1760785495801,500.0,0.00033991,120]
[391763952,1760785496033,500.0,0.00033991,120]
[391763953,1760785496305,500.0,0.00033991,120]
[391763954,1760785496529,500.0,0.00033991,120]
[391763955,1760785496775,500.0,0.00033991,120]
[391763956,1760785497011,500.0,0.00033991,120]
[391763957,1760785497264,500.0,0.00033991,120]
[391763958,1760785497538,331.71492654,0.00033991,120]
[391763959,1760785498744,500.0,0.00033991,120]
[391763960,1760785500903,500.0,0.00033991,120]
[391763961,1760785501060,500.0,0.00033991,120]
[391763962,1760785501291,334.64,0.00033991,120]
[391763963,1760785501760,500.0,0.00033991,120]
[391763964,1760785502824,300.0,0.00024149,2]
[391763965,1760785509034,500.0,0.00033991,120]
[391763966,1760785510281,500.0,0.00033991,120]
[391763967,1760785512899,500.0,0.00033991,120]
[391763968,1760785513142,315.33,0.00033991,120]
[391763969,1760785520249,343.58989521,0.00033991,120]
[391763970,1760785526065,632.1,0.00033991,120]
[391763971,1760785526306,500.0,0.00033991,120]
[391763972,1760785526564,500.0,0.00033991,120]
[391763973,1760785526817,500.0,0.00033991,120]
[391763974,1760785527058,243.22015946,0.00033991,120]
[391763975,1760785530858,500.0,0.00033991,120]
[391763976,1760785531512,500.0,0.00033991,120]
[391763977,1760785531691,500.0,0.00033991,120]
[391763978,1760785531928,500.0,0.00033991,120]
[391763979,1760785532168,500.0,0.00033991,120]
[391763980,1760785532394,500.0,0.00033991,120]
[391763981,1760785532468,500.0,0.00033991,120]
[391763982,1760785532627,500.0,0.00033991,120]
[391763983,1760785532857,500.0,0.00033991,120]
[391763984,1760785533104,500.0,0.00033991,120]
[391763985,1760785533337,500.0,0.00033991,120]
[391763986,1760785533575,511.04070828,0.00033991,120]
[391763987,1760785545915,500.0,0.00033991,120]
[391763988,1760785548312,500.0,0.00033991,120]
[391763989,1760785548549,500.0,0.00033991,120]
[391763990,1760785548833,500.0,0.00033991,120]
[391763991,1760785549120,500.0,0.00033991,120]
[391763992,1760785549378,500.0,0.00033991,120]
[391763993,1760785549625,500.0,0.00033991,120]
[391763994,1760785549691,500.0,0.00033991,120]
[391763995,1760785549863,500.0,0.00033991,120]
[391763996,1760785550097,500.0,0.00033991,120]
[391763997,1760785550341,452.44995996,0.00033991,120]
[391763998,1760785555693,259.30037156,0.00033991,120]
[391763999,1760785559548,500.0,0.00033991,120]
[391764000,1760785559798,500.0,0.00033991,120]
[391764001,1760785560035,506.1282257,0.00033991,120]
[391764002,1760785560074,500.0,0.00033991,120]
[391764003,1760785560285,500.0,0.00033991,120]
[391764004,1760785560533,500.0,0.00033991,120]
[391764005,1760785560775,500.0,0.00033991,120]
[391764006,1760785561017,500.0,0.00033991,120]
[391764007,1760785561265,500.0,0.00033991,120]
[391764008,1760785561862,500.0,0.00033991,120]
[391764009,1760785562124,500.0,0.00033991,120]
[391764010,1760785562417,500.0,0.00033991,120]
[391764011,1760785562612,500.0,0.00033991,120]
[391764012,1760785562860,500.0,0.00033991,120]
[391764013,1760785563114,500.0,0.00033991,120]
[391764014,1760785563168,300.0,0.00024149,2]
[391764015,1760785563384,500.0,0.00033991,120]
[391764016,1760785563632,500.0,0.00033991,120]
[391764017,1760785563875,500.0,0.00033991,120]
[391764018,1760785564143,500.0,0.00033991,120]
[391764019,1760785564383,500.0,0.00033991,120]
[391764020,1760785564632,500.0,0.00033991,120]
[391764021,1760785564871,500.0,0.00033991,120]
[391764022,1760785565101,500.0,0.00033991,120]
[391764023,1760785565328,351.04142319,0.00033991,120]
[391764024,1760785570157,500.0,0.00033991,120]
[391764025,1760785574224,500.0,0.00033991,120]
[391764026,1760785574463,500.0,0.00033991,120]
[391764027,1760785574710,500.0,0.00033991,120]
[391764028,1760785574981,500.0,0.00033991,120]
[391764029,1760785575222,500.0,0.00033991,120]
[391764030,1760785575467,244.71607166,0.00033991,120]
[391764031,1760785577474,500.0,0.00033991,120]
[391764032,1760785579260,500.0,0.00033991,120]
[391764033,1760785587002,493.17102773,0.00033991,120]
[391764034,1760785597367,286.74993965,0.00033991,120]
[391764035,1760785604084,519.56617309,0.00033991,120]
[391764036,1760785604496,500.0,0.00033991,120]
[391764037,1760785607936,500.0,0.00033991,120]
[391764038,1760785611670,500.0,0.00033991,120]
[391764039,1760785611924,500.0,0.00033991,120]
[391764040,1760785612159,500.0,0.00033991,120]
[391764041,1760785612763,500.0,0.00033991,120]
[391764042,1760785613039,500.0,0.00033991,120]
[391764043,1760785613276,500.0,0.00033991,120]
[391764044,1760785613538,328.14315208,0.00033991,120]
[391764045,1760785614347,500.0,0.00033991,120]
[391764046,1760785614461,237.08,0.00033991,120]
[391764047,1760785619846,500.0,0.00033991,120]
[391764048,1760785622151,286.77438362,0.00033991,120]
[391764049,1760785622528,300.0,0.00024149,2]
[391764050,1760785622621,500.0,0.00033991,120]
[391764051,1760785623721,512.68516319,0.00033991,120]
[391764052,1760785625731,301.16598155,0.00033991,120]
[391764053,1760785627820,500.0,0.00033991,120]
[391764054,1760785640116,500.0,0.00033991,120]
[391764055,1760785655777,500.0,0.00033991,120]
[391764056,1760785658866,500.0,0.00033991,120]
[391764057,1760785659959,500.0,0.00033991,120]
[391764058,1760785670952,157.90916413,0.00033991,120]
[391764059,1760785682268,300.0,0.00024149,2]
[391764060,1760785691905,1000.0,0.00023441,30]
[391764061,1760785696224,500.0,0.00033991,120]
[391764062,1760785698098,478.49507464,0.00033991,120]
[391764063,1760785708472,500.0,0.00033991,120]
[391764064,1760785714086,500.0,0.00033991,120]
[391764065,1760785714250,500.0,0.00033991,120]
[391764066,1760785714311,500.0,0.00033991,120]
[391764067,1760785714485,163.82080365,0.00033991,120]
[391764068,1760785716479,500.0,0.00033991,120]
[391764069,1760785722990,500.0,0.00033991,120]
[391764070,1760785723683,500.0,0.00033991,120]
[391764071,1760785728753,195.96891282,0.00033991,120]
[391764072,1760785738983,500.0,0.00033991,120]
[391764073,1760785742257,276.45623622,0.00024149,2]
[391764074,1760785742278,23.54376378,0.00024149,2]
[391764075,1760785751861,500.0,0.00033991,120]
[391764076,1760785753952,309.82034296,0.00033991,120]
[391764077,1760785758434,500.0,0.00033991,120]
[391764078,1760785762808,369.57060391,0.00033991,120]
[391764079,1760785770216,447.88378181,0.00033991,120]
[391764080,1760785774400,500.0,0.00033991,120]
[391764081,1760785777900,625.0,0.00033991,120]
[391764082,1760785778143,625.0,0.00033991,120]
[391764083,1760785778395,625.0,0.00033991,120]
[391764084,1760785778631,625.0,0.00033991,120]
[391764085,1760785779203,625.0,0.00033991,120]
[391764086,1760785779452,625.0,0.00033991,120]
[391764087,1760785779690,625.0,0.00033991,120]
[391764088,1760785779925,625.0,0.00033991,120]
[391764089,1760785780208,625.0,0.00033991,120]
[391764090,1760785780423,625.0,0.00033991,120]
[391764091,1760785780660,625.0,0.00033991,120]
[391764092,1760785780934,625.0,0.00033991,120]
[391764093,1760785781182,625.0,0.00033991,120]
[391764094,1760785781425,625.0,0.00033991,120]
[391764095,1760785781656,625.0,0.00033991,120]
[391764096,1760785782111,625.0,0.00033991,120]
[391764097,1760785782177,625.0,0.00033991,120]
[391764098,1760785782421,625.0,0.00033991,120]
[391764099,1760785782661,625.0,0.00033991,120]
[391764100,1760785782897,625.0,0.00033991,120]
[391764101,1760785783158,625.0,0.00033991,120]
[391764102,1760785783400,625.0,0.00033991,120]
[391764103,1760785783642,625.0,0.00033991,120]
[391764104,1760785783899,625.0,0.00033991,120]
[391764105,1760785790173,329.79,0.00033991,120]
[391764106,1760785795437,500.0,0.00033991,120]
[391764107,1760785797943,500.0,0.00033991,120]
[391764108,1760785802076,300.0,0.00024149,2]
[391764109,1760785805554,500.0,0.00033991,120]
[391764110,1760785806251,500.0,0.00033991,120]
[391764138,1760785832156,-160.0,0.0002415,2]
[391764140,1760785832167,-191.09355871,0.0002415,2]
[391764141,1760785832176,-1650.72514121,0.0002415,2]
[391764142,1760785832190,-7860.14915014,0.0002415,2]
[391764143,1760785832201,-500.0,0.0002415,2]
[391764145,1760785832211,-500.0,0.0002415,2]
[391764147,1760785832222,-500.0,0.0002415,2]
[391764149,1760785832232,-432.92425074,0.0002415,2]
[391764150,1760785832242,-289.48923361,0.000242,2]
[391764151,1760785832252,-150.0,0.00024249,2]
[391764152,1760785832261,-18614.30908716,0.00024249,2]
[391764153,1760785832271,-204.0,0.0002425,2]
[391764154,1760785832280,-204.0,0.00024252,2]
[391764155,1760785832290,-204.0,0.00024273,2]
[391764156,1760785832299,-204.0,0.00024295,2]
[391764157,1760785832309,-225.0,0.000243,3]
[391764158,1760785832318,-150.0,0.000245,2]
[391764159,1760785832327,-150.0,0.000245,10]
[391764160,1760785832337,-225.0,0.000245,3]
[391764161,1760785832346,-501.65625427,0.00024523,9]
[391764162,1760785832356,-204.0,0.00024571,2]
[391764163,1760785832367,-300.0,0.00024632,20]
[391764164,1760785832377,-300.0,0.00024632,20]
[391764165,1760785832387,-300.0,0.00024632,20]
[391764166,1760785832397,-300.0,0.00024632,20]
[391764167,1760785832406,-300.0,0.00024632,20]
[391764168,1760785832416,-300.0,0.00024632,20]
[391764169,1760785832425,-300.0,0.00024632,20]
[391764170,1760785832435,-300.0,0.00024632,20]
[391764171,1760785832445,-300.0,0.00024632,20]
[391764172,1760785832455,-300.0,0.00024632,20]
[391764173,1760785832633,-300.0,0.00024632,20]
[391764174,1760785832643,-300.0,0.00024632,20]
[391764175,1760785832653,-300.0,0.00024632,20]
[391764176,1760785832663,-300.0,0.00024632,20]
[391764177,1760785832672,-300.0,0.00024632,20]
[391764178,1760785832682,-600.0,0.00024632,20]
[391764179,1760785832691,-170.94257945,0.00024642,2]
[391764180,1760785832701,-823.77908852,0.00024642,2]
[391764181,1760785832711,-305.57052811,0.00024656,2]
[391764182,1760785832722,-285.94799682,0.00024656,2]
[391764183,1760785832732,-500.0,0.00024657,2]
[391764184,1760785832742,-1000.0,0.00024657,2]
[391764185,1760785832751,-1000.0,0.00024657,2]
[391764186,1760785832760,-727.43465537,0.00024657,2]
[391764187,1760785832770,-1295.32,0.00024657,2]
[391764188,1760785832780,-1295.32,0.00024657,2]
[391764189,1760785832789,-1295.32,0.00024657,2]
[391764190,1760785832799,-1295.32,0.00024657,2]
[391764191,1760785832808,-1295.32,0.00024657,2]
[391764192,1760785832818,-1295.32,0.00024657,2]
[391764193,1760785832828,-1295.32,0.00024657,2]
[391764194,1760785832837,-1295.32,0.00024657,2]
[391764195,1760785832847,-1295.32,0.00024657,2]
[391764196,1760785832857,-1295.32,0.00024657,2]
[391764197,1760785832866,-1295.32,0.00024657,2]
[391764198,1760785832875,-1295.32,0.00024657,2]
[391764199,1760785832884,-1295.32,0.00024657,2]
[391764200,1760785832894,-1295.32,0.00024657,2]
[391764201,1760785832903,-1295.32,0.00024657,2]
[391764202,1760785832912,-1295.32,0.00024657,2]
[391764203,1760785832921,-1295.32,0.00024657,2]
[391764204,1760785832931,-1295.32,0.00024657,2]
[391764205,1760785832940,-1295.32,0.00024657,2]
[391764206,1760785832950,-1295.32,0.00024657,2]
[391764207,1760785832960,-1295.32,0.00024657,2]
[391764208,1760785832969,-1295.32,0.00024657,2]
[391764209,1760785832978,-1295.32,0.00024657,2]
[391764210,1760785832987,-1295.51576277,0.00024657,2]
[391764211,1760785832996,-1535.16,0.00024657,2]
[391764212,1760785833006,-1535.16,0.00024657,2]
[391764213,1760785833015,-1535.16,0.00024657,2]
[391764214,1760785833024,-1535.16,0.00024657,2]
[391764215,1760785833033,-1535.16,0.00024657,2]
[391764216,1760785833043,-1535.16,0.00024657,2]
[391764217,1760785833052,-1535.16,0.00024657,2]
[391764218,1760785833062,-193.13970953,0.00024657,2]
[391764221,1760785837786,500.0,0.00033991,120]
[391764224,1760785838013,-1342.02029047,0.00024657,2]
[391764225,1760785838022,-1535.16,0.00024657,2]
[391764226,1760785838033,-1535.16,0.00024657,2]
[391764227,1760785838042,-1535.16,0.00024657,2]
[391764228,1760785838052,-1535.16,0.00024657,2]
[391764229,1760785838062,-1535.16,0.00024657,2]
[391764230,1760785838072,-1535.16,0.00024657,2]
[391764231,1760785838083,-1535.16,0.00024657,2]
[391764232,1760785838095,-1535.16,0.00024657,2]
[391764233,1760785838105,-1535.16,0.00024657,2]
[391764234,1760785838114,-1535.16,0.00024657,2]
[391764235,1760785838124,-1535.16,0.00024657,2]
[391764236,1760785838133,-1535.16,0.00024657,2]
[391764237,1760785838143,-1535.16,0.00024657,2]
[391764238,1760785838153,-1535.16,0.00024657,2]
[391764239,1760785838162,-1535.16,0.00024657,2]
[391764240,1760785838171,-1535.3752559,0.00024657,2]
[391764241,1760785838180,-500.0,0.00024657,2]
[391764242,1760785838189,-500.0,0.00024657,2]
[391764243,1760785838198,-500.0,0.00024657,2]
[391764244,1760785838208,-500.0,0.00024657,2]
[391764245,1760785838217,-500.0,0.00024657,2]
[391764246,1760785838227,-500.0,0.00024657,2]
[391764247,1760785838236,-504.22821154,0.00024657,2]
[391764248,1760785838245,-1000.0,0.00024657,2]
[391764249,1760785838262,-843.57001591,0.00024657,2]
[391764250,1760785838272,-299.93,0.00024668,2]
[391764251,1760785838283,-375.78358525,0.00024673,2]
[391764252,1760785838293,-507.77610984,0.00024673,2]
[391764253,1760785838302,-500.0,0.00024673,2]
[391764254,1760785838312,-500.0,0.00024673,2]
[391764255,1760785838322,-500.0,0.00024673,2]
[391764256,1760785838331,-500.0,0.00024673,2]
[391764257,1760785838340,-500.0,0.00024673,2]
[391764258,1760785838349,-500.0,0.00024673,2]
[391764259,1760785838359,-500.0,0.00024673,2]
[391764260,1760785838368,-500.0,0.00024673,2]
[391764261,1760785838377,-500.0,0.00024673,2]
[391764262,1760785838387,-160.0,0.00024685,14]
[391764263,1760785838397,-219.75759252,0.0002475,2]
[391764264,1760785838407,-4202.0,0.00024768,2]
[391764265,1760785838416,-982.0,0.00024768,2]
[391764266,1760785838426,-2162.0,0.00024768,2]
[391764267,1760785838435,-631.0,0.00024768,2]
[391764268,1760785838445,-411.0,0.00024768,2]
[391764269,1760785838455,-423.986,0.00024768,2]
[391764270,1760785838465,-1063.99937445,0.000248,2]
[391764271,1760785838475,-150.0,0.00024819,2]
[391764272,1760785838485,-150.0,0.00024819,2]
[391764273,1760785838495,-550.21,0.0002489,3]
[391764274,1760785838504,-275.1,0.0002489,3]
[391764275,1760785838514,-825.33,0.0002489,3]
[391764276,1760785838523,-161.726012,0.00024895,2]
[391764277,1760785838533,-53403.8339258,0.000249,2]
[391764278,1760785838543,-204.0,0.00024908,2]
[391764279,1760785838553,-168.0,0.00024913,2]
[391764280,1760785838568,-1000.0,0.0002492,2]
[391764281,1760785838578,-1000.0,0.0002492,2]
[391764282,1760785838587,-1000.0,0.0002492,2]
[391764283,1760785838597,-1000.0,0.0002492,2]
[391764284,1760785838606,-1000.0,0.0002492,2]
[391764285,1760785838615,-1000.0,0.0002492,2]
[391764286,1760785838625,-1000.0,0.0002492,2]
[391764287,1760785838634,-500.0,0.00024931,2]
[391764288,1760785838643,-161.726012,0.00024959,2]
[391764289,1760785838652,-14227.94291275,0.00024995,2]
[391764290,1760785838662,-500.0,0.00025026,2]
[391764291,1760785838671,-500.0,0.00025026,2]
[391764292,1760785838680,-204.0,0.00025072,2]
[391764293,1760785838690,-168.0,0.00025073,2]
[391764294,1760785838699,-53403.8339258,0.00025095,2]
[391764295,1760785838709,-1063.99937445,0.00025095,2]
[391764296,1760785838718,-204.0,0.00025131,2]
[391764297,1760785838727,-160.0,0.0002517,2]
[391764298,1760785838736,-204.0,0.00025179,2]
[391764299,1760785838747,-854.2589148,0.0002519,2]
[391764300,1760785838756,-1000.0,0.00025204,2]
[391764301,1760785838765,-500.0,0.00025205,2]
[391764302,1760785838774,-245.19,0.00025205,7]
[391764303,1760785838785,-1400.0,0.00025205,2]
[391764304,1760785838794,-1000.0,0.00025221,2]
[391764305,1760785838805,-1000.0,0.00025221,2]
[391764306,1760785838815,-1000.0,0.00025221,2]
[391764307,1760785838824,-1000.0,0.00025221,2]
[391764308,1760785838834,-1000.0,0.00025221,2]
[391764309,1760785838843,-1000.0,0.00025221,2]
[391764310,1760785838853,-1000.0,0.00025221,2]
[391764311,1760785838862,-1000.0,0.00025221,2]
[391764312,1760785838871,-1000.0,0.00025221,2]
[391764313,1760785838881,-204.0,0.00025224,2]
[391764314,1760785838891,-302.0,0.00025238,2]
[391764315,1760785838900,-204.0,0.00025258,2]
[391764316,1760785838910,-1132.1786,0.00025267,2]
[391764317,1760785838919,-500.0,0.00025273,2]
[391764318,1760785838928,-161.726012,0.00025301,7]
[391764319,1760785838938,-204.0,0.00025318,2]
[391764320,1760785838947,-248.42162632,0.0002535,2]
[391764321,1760785838957,-161.726012,0.00025353,7]
[391764322,1760785838967,-204.0,0.00025362,2]
[391764323,1760785838976,-150.0,0.00025365,7]
[391764324,1760785838986,-168.0,0.00025376,2]
[391764325,1760785838995,-468.4130905,0.00025478,2]
[391764326,1760785839005,-500.0,0.00025479,2]
[391764327,1760785839014,-245.19,0.00025479,8]
[391764328,1760785839024,-1000.0,0.00025574,2]
[391764329,1760785839033,-438.66974914,0.00025574,2]
[391764330,1760785839043,-923.55862034,0.00025668,2]
[391764331,1760785839052,-260.0,0.00025718,2]
[391764332,1760785839062,-885.86649465,0.00025738,2]
[391764333,1760785839072,-500.0,0.00025753,2]
[391764334,1760785839081,-245.19,0.00025753,9]
[391764335,1760785839091,-53403.8339258,0.00025758,2]
[391764336,1760785839101,-1063.99937445,0.00025758,2]
[391764337,1760785839110,-500.0,0.00025768,5]
[391764338,1760785839119,-1500.0,0.00025768,2]
[391764339,1760785839129,-1500.0,0.00025768,2]
[391764340,1760785839140,-1500.0,0.00025768,2]
[391764341,1760785839150,-1636.53146895,0.00025768,2]
[391764342,1760785839159,-1500.0,0.00025768,2]
[391764343,1760785839169,-1009.41258202,0.00025768,2]
[391764344,1760785839179,-1500.0,0.00025768,2]
[391764345,1760785839189,-350.70958409,0.00025768,2]
[391764346,1760785839199,-1500.0,0.00025768,2]
[391764347,1760785839208,-150.0,0.00025773,2]
[391764348,1760785839219,-500.0,0.00025773,2]
[391764349,1760785839228,-160.0,0.00025773,2]
[391764350,1760785839238,-500.0,0.00025773,2]
[391764351,1760785839248,-500.0,0.00025773,2]
[391764352,1760785839258,-500.0,0.00025773,2]
[391764353,1760785839267,-434.76346246,0.00025773,2]
[391764354,1760785839277,-511.56144253,0.00025821,2]
[391764355,1760785839286,-277.08566013,0.0002595,2]
[391764356,1760785839296,-500.0,0.00026027,2]
[391764357,1760785839305,-245.19,0.00026027,10]
[391764358,1760785839315,-500.0,0.00026042,5]
[391764359,1760785839325,-12802.55752494,0.00026096,2]
[391764360,1760785839338,-1425.38538777,0.00026096,2]
[391764361,1760785839348,-1500.0,0.00026122,2]
[391764362,1760785839357,-161.726012,0.00026165,10]
[391764363,1760785839367,-420.0,0.00026184,2]
[391764364,1760785839377,-161.726012,0.00026246,10]
[391764365,1760785839387,-1100.42,0.0002626,3]
[391764366,1760785839396,-550.2,0.0002626,3]
[391764367,1760785839406,-153.0,0.0002626,2]
[391764368,1760785839416,-153.0,0.0002626,2]
[391764369,1760785839425,-153.0,0.0002626,2]
[391764370,1760785839435,-153.0,0.0002626,2]
[391764371,1760785839444,-153.0,0.0002626,2]
[391764372,1760785839454,-153.0,0.0002626,2]
[391764373,1760785839464,-153.0,0.0002626,2]
[391764374,1760785839473,-153.0,0.0002626,2]
[391764375,1760785839483,-153.0,0.0002626,2]
[391764376,1760785839492,-360.0,0.00026266,2]
[391764377,1760785839503,-918.64355495,0.00026286,2]
[391764378,1760785839513,-161.726012,0.00026291,3]
[391764379,1760785839523,-153.0,0.00026292,2]
[391764380,1760785839532,-153.0,0.00026292,2]
[391764381,1760785839542,-161.726012,0.00026297,3]
[391764382,1760785839551,-203.27069726,0.00026301,2]
[391764383,1760785839565,-296.72930274,0.00026301,2]
[391764384,1760785839575,-245.19,0.00026301,11]
[391764385,1760785839584,-1400.0,0.00026301,2]
[391764386,1760785839594,-2772.81760616,0.00026306,2]
[391764387,1760785839607,-3690.84942205,0.00026306,2]
[391764431,1760785840486,-0.00690728,0.00024557,2]
[391764767,1760785843693,500.0,0.00033991,120]
[391765683,1760785859085,500.0,0.00033991,120]
[391765684,1760785880063,500.0,0.00033991,120]
[391765685,1760785890506,344.94014388,0.00033991,120]
[391765686,1760785893458,500.0,0.00033991,120]
[391765687,1760785894045,198.75,0.00033991,120]
[391765688,1760785894347,401.66876941,0.00033991,120]
[391765689,1760785896214,500.0,0.00033991,120]
[391765690,1760785896818,500.0,0.00033991,120]
[391765691,1760785898145,500.0,0.00033991,120]
[391765692,1760785898181,500.0,0.00033991,120]
[391765693,1760785898411,500.0,0.00033991,120]
[391765694,1760785898658,296.12,0.00033991,120]
[391765695,1760785899417,500.0,0.00033991,120]
[391765696,1760785900135,500.0,0.00033991,120]
[391765697,1760785900177,500.0,0.00033991,120]
[391765698,1760785902747,500.0,0.00033991,120]
[391765699,1760785908310,636.44,0.00033991,120]
[391765700,1760785908512,500.0,0.00033991,120]
[391765701,1760785908843,500.0,0.00033991,120]
[391765702,1760785909079,500.0,0.00033991,120]
[391765703,1760785909378,500.0,0.00033991,120]
[391765704,1760785909438,200.65,0.00033991,120]
[391765705,1760785911130,417.15472785,0.0002415,2]
[391765706,1760785913746,505.66295865,0.00033991,120]
[391765707,1760785914976,500.0,0.00033991,120]
[391765708,1760785915214,500.0,0.00033991,120]
[391765709,1760785915558,500.0,0.00033991,120]
[391765710,1760785915692,500.0,0.00033991,120]
[391765711,1760785915938,336.16,0.00033991,120]
[391765712,1760785921117,643.40044356,0.00033991,120]
[391765713,1760785922501,500.0,0.00033991,120]
[391765714,1760785922763,500.0,0.00033991,120]
[391765715,1760785924950,500.0,0.00033991,120]
[391765716,1760785924992,500.0,0.00033991,120]
[391765717,1760785925855,500.0,0.00033991,120]
[391765718,1760785926100,500.0,0.00033991,120]
[391765719,1760785926359,624.51,0.00033991,120]
[391765720,1760785926425,500.0,0.00033991,120]
[391765721,1760785926868,196.94045717,0.00033991,120]
[391765722,1760785932278,500.0,0.00033991,120]
[391765723,1760785933127,500.0,0.00033991,120]
[391765724,1760785933360,403.23,0.00033991,120]
[391765725,1760785934210,277.33119037,0.00033991,120]
[391765726,1760785934480,500.0,0.00033991,120]
[391765727,1760785936431,500.0,0.00033991,120]
[391765728,1760785937067,632.41414564,0.00033991,120]
[391765729,1760785937117,500.0,0.00033991,120]
[391765730,1760785937456,386.42,0.00033991,120]
[391765731,1760785940054,500.0,0.00033991,120]
[391765732,1760785940292,325.98,0.00033991,120]
[391765733,1760785940556,500.0,0.00033991,120]
[391765734,1760785942446,500.0,0.00033991,120]
[391765735,1760785942911,500.0,0.00033991,120]
[391765736,1760785943193,500.0,0.00033991,120]
[391765737,1760785943403,433.54,0.00033991,120]
[391765738,1760785945371,500.0,0.00033991,120]
[391765739,1760785945609,376.44,0.00033991,120]
[391765740,1760785946224,625.52,0.00033991,120]
[391765741,1760785948481,500.0,0.00033991,120]
[391765742,1760785948726,500.0,0.00033991,120]
[391765743,1760785949109,500.0,0.00033991,120]
[391765744,1760785949462,600.82,0.00033991,120]
[391765745,1760785949739,500.0,0.00033991,120]
[391765746,1760785950962,500.0,0.00033991,120]
[391765747,1760785955122,366.43651389,0.00033991,120]
[391765748,1760785956032,450.4852813,0.00033991,120]
[391765749,1760785958303,500.0,0.00033991,120]
[391765750,1760785959684,500.0,0.00033991,120]
[391765751,1760785960268,500.0,0.00033991,120]
[391765752,1760785963042,168.195053,0.00024139,20]
[391765753,1760785964701,500.0,0.00033991,120]
[391765754,1760785965840,500.0,0.00033991,120]
[391765755,1760785966758,500.0,0.00033991,120]
[391765756,1760785966793,497.07726695,0.00033991,120]
[391765757,1760785967030,500.0,0.00033991,120]
[391765758,1760785967066,500.0,0.00033991,120]
[391765759,1760785967300,500.0,0.00033991,120]
[391765760,1760785967537,353.53,0.00033991,120]
[391765761,1760785968685,500.0,0.00033991,120]
[391765762,1760785969535,500.0,0.00033991,120]
[391765763,1760785969822,500.0,0.00033991,120]
[391765764,1760785971282,500.0,0.00033991,120]
[391765765,1760785972360,500.0,0.00033991,120]
[391765766,1760785973182,500.0,0.00033991,120]
[391765767,1760785974194,500.0,0.00033991,120]